Workbook

Sheet сев
A2: Наименование хозяйства | D2: Яровой сев (зерновые и зернобобовые), га | P2: Зерновые и зернобобовые, всего, га | S2: Яровой сев (прочие), га | AE2: Яровой сев, всего, га | AG2: %
D3: пшеница | G3: ячмень | J3: овес | M3: зернобобовые (горох,вика) | P3: План | Q3: Факт | R3: % | S3: рапс | V3: кукуруза | Y3: лен | AB3: однолетние | AC3: мн. травы б/п | AD3: картофель | AE3: План | AF3: Факт
D4: план | E4: факт | F4: % | G4: план | H4: факт | I4: % | J4: план | K4: факт | L4: % | M4: план | N4: факт | O4: % | S4: план | T4: факт | U4: % | V4: план | W4: факт | X4: % | Y4: план | Z4: факт | AA4: %
A5: СППК "Агротакт" | E5: 25 | F5: =E5/D5*100 ->  | I5: =H5/G5*100 ->  | L5: =K5/J5*100 ->  | N5: 0 | O5: =N5/M5*100 ->  | P5: =D5+G5+J5+M5 -> 0 | Q5: =E5+H5+K5+N5 -> 25 | R5: =Q5/P5*100 ->  | U5: =T5/S5*100 ->  | X5: =W5/V5*100 ->  | Y5: 100 | Z5: 180 | AA5: =Z5/Y5*100 -> 180 | AE5: 100 | AF5: =E5+Z5 -> 205 | AG5: =AF5/AE5*100 -> 205
A6: ООО "Ленинское" | D6: 40 | E6: 40 | F6: =E6/D6*100 -> 100 | G6: 211 | H6: 211 | I6: =H6/G6*100 -> 100 | J6: 41 | K6: 35 | L6: =K6/J6*100 -> 85.36585366 | M6: 141 | N6: 173 | O6: =N6/M6*100 -> 122.6950355 | P6: =D6+G6+J6+M6 -> 433 | Q6: =E6+H6+K6+N6 -> 459 | R6: =Q6/P6*100 -> 106.0046189 | AE6: 433 | AF6: =Q6+T6+W6+AB6+AC6+AD6 -> 459 | AG6: 106.0046189
A7: ООО "Парма био" | P7: 0 | Q7: 0 | AF7: =Q7+T7+W7+AB7+AC7+AD7 -> 0
A8: ООО АП "Соколово" | J8: 200 | K8: 200 | L8: 100 | P8: 200 | Q8: 200 | R8: 100 | AB8: 590 | AE8: 790 | AF8: =Q8+T8+W8+AB8+AC8+AD8 -> 790 | AG8: 100
A9: ООО АФ "Галинское" | D9: 219 | E9: 219 | F9: 100 | J9: 214 | K9: 214 | L9: 100 | P9: 433 | Q9: 433 | R9: 100 | AB9: 403 | AE9: 770 | AF9: =Q9+T9+W9+AB9+AC9+AD9 -> 836 | AG9: 108.5714286
A10: ООО "Заполье" | D10: 100 | E10: 100 | F10: 100 | G10: 200 | H10: 200 | I10: 100 | J10: 200 | K10: 200 | L10: 100 | P10: 500 | Q10: 500 | R10: 100 | AB10: 800 | AE10: 1300 | AF10: =Q10+T10+W10+AB10+AC10+AD10 -> 1300 | AG10: 100
A11: ООО АП "Заря Путино" | D11: 587 | E11: 587 | F11: 100 | G11: 1360 | H11: 1360 | I11: 100 | J11: 300 | K11: 300 | L11: 100 | P11: 2247 | Q11: 2247 | R11: 100 | S11: 659 | T11: 659 | U11: 100 | V11: 934 | W11: 934 | X11: =W11/V11*100 -> 100 | AB11: 1938 | AE11: 5778 | AF11: =Q11+T11+W11+AB11+AC11+AD11 -> 5778 | AG11: 100
A12: Итого по предприятиям: | D12: =SUM(D5:D11) -> 946 | E12: =SUM(E5:E11) -> 971 | F12: 102.6427061 | G12: 1771 | H12: 1771 | I12: 100 | J12: 955 | K12: 949 | L12: 99.37172775 | M12: 141 | N12: 173 | O12: 122.6950355 | P12: 3813 | Q12: 3864 | R12: 101.3375295 | S12: 659 | T12: 659 | U12: 100 | V12: 934 | W12: 934 | X12: 100 | Y12: 100 | Z12: =SUM(Z5:Z11) -> 180 | AA12: =Z12/Y12*100 -> 180 | AB12: 3731 | AC12: 0 | AD12: 0 | AE12: 9171 | AF12: =Q12+T12+W12+AB12+AC12+AD12+Z12 -> 9368 | AG12: 102.1480755
A13: КФХ | D13: 165 | E13: 188 | F13: 113.9393939 | G13: 112 | H13: 117 | I13: 104.4642857 | J13: 461 | K13: 457 | L13: 99.13232104 | P13: 738 | Q13: 762 | R13: 103.2520325 | AC13: 206 | AD13: 1 | AE13: 739 | AF13: =Q13+T13+W13+AB13+AC13+AD13 -> 969 | AG13: 131.1231394
A14: ВСЕГО: | D14: =D12+D13 -> 1111 | E14: =E12+E13 -> 1159 | F14: 104.320432 | G14: 1883 | H14: 1888 | I14: 100.2655337 | J14: 1416 | K14: 1406 | L14: 99.29378531 | M14: 141 | N14: 173 | O14: 122.6950355 | P14: 4551 | Q14: 4626 | R14: 101.6479895 | S14: 659 | T14: 659 | U14: 100 | V14: 934 | W14: 934 | X14: 100 | Y14: 100 | Z14: =SUM(Z7:Z13) -> 180 | AA14: 180 | AB14: 3731 | AC14: 206 | AD14: 1 | AE14: 9910 | AF14: =Q14+T14+W14+AB14+AC14+AD14+AA14 -> 10337 | AG14: 104.308779
A15: На 31.05.2022 | D15: 1157 | E15: 842 | F15: 72.77441659 | G15: 1989 | H15: 1248 | I15: 62.74509804 | J15: 1687 | K15: 937 | L15: 55.54238293 | P15: 4833 | Q15: 3027 | R15: 62.63190565 | S15: 652 | T15: 652 | U15: 100 | V15: 536 | W15: 0 | X15: 0 | AB15: 1776 | AC15: 70 | AD15: 0 | AE15: 9816 | AF15: =Q15+T15+W15+AB15+AC15+AD15+AA15 -> 5525 | AG15: =AF15/AE15*100 -> 56.28565607

Sheet полевые раб.
B1: ИНФОРМАЦИЯ ПО ВЕРЕЩАГИНСКОМУ ГОРОДСКОМУ ОКРУГУ
A2: Полевые работы на 30.05.2023
A3: Наименование хозяйства | D3: Подкормка многолетних трав, га | E3: Подкормка озимых, га | F3: Боронование многолетних трав, га | G3: Боронование озимых, га | H3: Весновспашка,га | I3: Культивация, га | J3: Закрытие влаги, га | K3: Протравлено семян, т
A4: СППК "Агротакт" | I4: 180 | J4: 180
A5: ООО "Ленинское" | D5: 130 | F5: 810 | H5: 26 | I5: 459 | J5: 459
A6: ООО "Парма био" | D6: 1017 | F6: 2275
A7: ООО АП "Соколово" | F7: 1720 | H7: 396 | J7: 790
A8: ООО АФ "Галинское" | F8: 1275 | I8: 836 | J8: 836
A9: ООО "Заполье" | D9: 700 | F9: 800 | I9: 1300 | J9: 1300
A10: ООО АП "Заря Путино" | E10: 447 | F10: 933 | G10: 447 | I10: 5778 | J10: 5778 | K10: 657
A11: Итого по предприятиям: | D11: =SUM(D4:D10) -> 1847 | E11: 447 | F11: 7813 | G11: 447 | H11: 422 | I11: 8553 | J11: =SUM(J4:J10) -> 9343 | K11: =SUM(K4:K10) -> 657
A12: КФХ | F12: 1843.2 | I12: 969 | J12: 969
A13: ВСЕГО: | D13: =D11+D12 -> 1847 | E13: =E11+E12 -> 447 | F13: 9656.2 | G13: 447 | H13: 422 | I13: 9522 | J13: 10312 | K13: 657
A14: На 31.05.2022. | D14: 1965 | E14: 379 | F14: 11106 | G14: 0 | H14: 246 | I14: 5973 | J14: 7426 | K14: 720
